bitfinex/quotes_BTCUSD_20220205
["timestamp","ask_amount","ask_price","bid_price","bid_amount"]
[1644078994600,0.26963093,41680.0,41677.0,0.01165451]
[1644078994806,0.333794,41679.0,41677.0,0.0114]
[1644078994998,0.048,41678.0,41677.0,0.0114]
[1644078997939,0.043,41678.0,41677.0,0.0114]
[1644079001284,0.34157432,41678.0,41677.0,0.0114]
[1644079002693,0.043,41678.0,41677.0,0.0114]
[1644079005342,0.043,41678.0,41677.0,0.0064]
[1644079009888,0.29831762,41680.0,41677.0,0.0064]
[1644079010538,0.21162293,41680.0,41677.0,0.0064]
[1644079011334,0.25962293,41680.0,41677.0,0.0064]
[1644079011533,0.32855049,41680.0,41677.0,0.0064]
[1644079012938,0.31855049,41680.0,41677.0,0.0064]
[1644079015290,0.47855668,41680.0,41677.0,0.0064]
[1644079015490,0.71597052,41680.0,41677.0,0.0064]
[1644079016190,0.76597052,41680.0,41677.0,0.0064]
[1644079016392,0.333794,41679.0,41677.0,0.0064]
[1644079016591,0.76597052,41680.0,41677.0,0.0064]
[1644079018941,0.46855049,41680.0,41677.0,0.0064]
[1644079020141,0.41855049,41680.0,41677.0,0.0064]
[1644079021142,0.2988957,41679.0,41677.0,0.0064]
[1644079021786,0.41855049,41680.0,41677.0,0.0064]
[1644079021986,0.110009,41679.0,41677.0,0.0064]
[1644079022187,0.9482,41678.0,41677.0,0.0064]
[1644079022384,1.381994,41678.0,41677.0,0.0064]
[1644079022584,1.2467833,41678.0,41677.0,0.0064]
[1644079030389,0.981994,41678.0,41677.0,0.0064]
[1644079030591,1.131994,41678.0,41677.0,0.0064]
[1644079031195,1.081994,41678.0,41677.0,0.0064]
[1644079031592,0.481794,41678.0,41677.0,0.0064]
[1644079033041,0.531794,41678.0,41677.0,0.0064]
[1644079033743,0.531734,41678.0,41677.0,0.0064]
[1644079035541,0.61115152,41678.0,41677.0,0.0064]
[1644079037790,0.56121152,41678.0,41677.0,0.0064]
[1644079041241,0.481794,41678.0,41677.0,0.0064]
[1644079042646,0.7,41677.0,41663.0,0.053]
[1644079042843,0.7,41677.0,41673.0,0.00026234]
[1644079042844,0.47848949,41675.0,41673.0,0.00026234]
[1644079043041,0.47848949,41675.0,41664.0,0.00026234]
[1644079043042,0.85578233,41674.0,41664.0,0.00026234]
[1644079043240,0.85578233,41674.0,41655.0,0.20874237]
[1644079043241,1.05860236,41672.0,41658.0,0.00026234]
[1644079043444,0.6002,41668.0,41656.0,0.00026234]
[1644079043643,0.29209006,41657.0,41655.0,0.00126234]
[1644079043843,0.29209006,41657.0,41656.0,0.334252]
[1644079043844,0.3921814,41657.0,41656.0,0.334252]
[1644079044046,0.048,41656.0,41655.0,0.001]
[1644079044590,0.381794,41656.0,41655.0,0.001]
[1644079044789,1.081994,41656.0,41655.0,0.001]
[1644079044989,0.7,41655.0,41654.0,0.0008]
[1644079045189,0.7,41654.0,41651.0,0.002]
[1644079045390,0.783794,41653.0,41645.0,0.0022]
[1644079045590,0.6002,41649.0,41645.0,0.0022]
[1644079045789,0.048,41648.0,41645.0,0.0022]
[1644079045990,0.048,41648.0,41647.0,0.002]
[1644079046190,0.381794,41648.0,41647.0,0.002]
[1644079046397,0.381794,41648.0,41631.0,0.20578002]
[1644079046398,0.15,41636.0,41631.0,0.20578002]
[1644079046596,0.05,41642.0,41630.0,0.05]
[1644079046597,0.0489,41632.0,41630.0,0.05]
[1644079046791,0.0489,41632.0,41625.0,0.002]
[1644079046792,0.5469,41631.0,41625.0,0.002]
[1644079046992,0.6002,41628.0,41625.0,0.002]
[1644079047191,0.0489,41626.0,41625.0,0.002]
[1644079047393,0.430694,41626.0,41625.0,0.002]
[1644079047592,0.480694,41626.0,41625.0,0.002]
[1644079047790,0.630694,41626.0,41625.0,0.002]
[1644079048053,0.62862235,41626.0,41625.0,0.002]
[1644079048855,0.93220773,41626.0,41625.0,0.002]
[1644079049056,0.62862235,41626.0,41625.0,0.002]
[1644079049658,0.19592835,41626.0,41625.0,0.0031]
[1644079049856,0.048,41626.0,41625.0,0.0031]
[1644079050059,0.381794,41626.0,41625.0,0.002]
[1644079050456,0.481794,41626.0,41625.0,0.002]
[1644079050657,0.531794,41626.0,41625.0,0.002]
[1644079050856,0.581794,41626.0,41625.0,0.002]
[1644079051457,0.83937874,41626.0,41625.0,0.002]
[1644079051657,0.78937874,41626.0,41625.0,0.002]
[1644079052292,1.08400421,41626.0,41625.0,0.002]
[1644079052494,0.531794,41626.0,41625.0,0.0031]
[1644079053695,0.481794,41626.0,41625.0,0.0031]
[1644079054898,0.481794,41626.0,41625.0,0.24880639]
[1644079056046,0.148,41626.0,41625.0,0.24880639]
[1644079056445,0.048,41626.0,41625.0,0.24880639]
[1644079056848,0.048,41626.0,41625.0,0.0031]
[1644079057153,0.381794,41626.0,41625.0,0.0031]
[1644079057547,0.048,41626.0,41625.0,0.0031]
[1644079059308,0.381794,41626.0,41625.0,0.002]
[1644079059503,0.481794,41626.0,41625.0,0.002]
[1644079059705,0.581794,41626.0,41625.0,0.002]
[1644079061308,0.87605184,41626.0,41625.0,0.002]
[1644079061508,1.04100536,41626.0,41625.0,0.002]
[1644079061906,1.04100536,41626.0,41625.0,0.0031]
[1644079062310,1.10630435,41626.0,41625.0,0.0031]
[1644079062807,1.10630435,41626.0,41625.0,0.002]
[1644079063947,1.10630435,41626.0,41619.0,0.0007122]
[1644079063948,0.7,41623.0,41619.0,0.0007122]
[1644079064145,0.05,41620.0,41619.0,0.0007122]
[1644079064341,0.02134104,41613.0,41609.0,0.05]
[1644079064545,0.02134104,41613.0,41601.0,0.04002413]
[1644079064546,0.748,41612.0,41601.0,0.04002413]
[1644079064747,0.05,41605.0,41601.0,0.04002413]
[1644079064948,0.7,41604.0,41593.0,0.7096395]
[1644079065147,0.7,41604.0,41598.0,0.0012274]
[1644079065148,0.05,41599.0,41598.0,0.0012274]
[1644079065344,0.7,41598.0,41593.0,0.6936121]
[1644079065547,0.333794,41597.0,41593.0,0.24608671]
[1644079065744,0.1,41596.0,41593.0,0.24608671]
[1644079065945,0.9776845,41595.0,41593.0,0.24608671]
[1644079066247,0.19110788,41594.0,41593.0,0.24608671]
[1644079066443,0.59471052,41594.0,41593.0,0.24608671]
[1644079066642,0.429757,41594.0,41593.0,0.24608671]
[1644079066892,0.69471052,41594.0,41593.0,0.24608671]
[1644079067089,0.529757,41594.0,41593.0,0.24608671]
[1644079067690,0.86295324,41594.0,41593.0,0.24608671]
[1644079067890,0.479757,41594.0,41593.0,0.24608671]
[1644079068090,0.048,41594.0,41593.0,0.24608671]
[1644079068790,0.05,41598.0,41593.0,0.24608671]
[1644079068992,0.331757,41597.0,41593.0,0.24608671]
[1644079069190,0.331757,41596.0,41593.0,0.24608671]
[1644079069391,0.05,41598.0,41593.0,0.24608671]
[1644079069690,0.1,41596.0,41593.0,0.24608671]
[1644079069890,0.331757,41595.0,41593.0,0.24608671]
[1644079070097,1.69814222,41594.0,41593.0,0.24608671]
[1644079070291,2.02989922,41594.0,41593.0,0.24608671]
[1644079070537,2.2496384,41594.0,41593.0,0.24608671]
[1644079070738,2.02989922,41594.0,41593.0,0.24608671]
[1644079070938,0.331757,41594.0,41593.0,0.24608671]
[1644079071138,0.15,41596.0,41593.0,0.24608671]
[1644079071341,0.05,41596.0,41593.0,0.24608671]
[1644079071741,0.32026341,41598.0,41593.0,0.24608671]
[1644079071943,0.5651346,41597.0,41593.0,0.24608671]
[1644079072140,2.90994064,41597.0,41593.0,0.24608671]
[1644079072340,3.00994064,41597.0,41593.0,0.24608671]
[1644079073140,3.00994064,41597.0,41593.0,0.24597571]
[1644079073342,0.05,41595.0,41593.0,0.24597571]
[1644079073644,0.331757,41594.0,41593.0,0.24597571]
[1644079073841,0.591896,41594.0,41593.0,0.24597571]
[1644079074041,0.391896,41594.0,41593.0,0.24597571]
[1644079074294,0.16510328,41595.0,41593.0,0.24597571]
[1644079074491,0.16510328,41596.0,41593.0,0.24597571]
[1644079074891,0.05,41596.0,41593.0,0.24597571]
[1644079075293,0.21509422,41596.0,41593.0,0.24597571]
[1644079075490,0.16509422,41596.0,41593.0,0.24597571]
[1644079075689,2.49480604,41597.0,41593.0,0.24597571]
[1644079075889,0.05,41596.0,41593.0,0.24597571]
[1644079076089,0.21509247,41596.0,41593.0,0.24597571]
[1644079076489,0.05,41596.0,41593.0,0.24597571]
[1644079076690,2.55494004,41597.0,41593.0,0.24597571]
[1644079079143,0.16509118,41596.0,41593.0,0.24597571]
[1644079083393,0.16509118,41596.0,41595.0,0.334497]
[1644079083588,0.34661323,41611.0,41595.0,0.334497]
[1644079083787,0.28530844,41611.0,41596.0,0.3]
[1644079083987,0.17023,41611.0,41596.0,0.3]
[1644079084188,0.19908268,41601.0,41594.0,0.00026023]
[1644079084393,0.11012564,41600.0,41593.0,0.24597571]
[1644079084588,0.120268,41599.0,41593.0,0.24597571]
[1644079084788,0.170268,41599.0,41593.0,0.24597571]
[1644079084986,0.220268,41599.0,41593.0,0.24597571]
[1644079085187,0.28832528,41594.0,41593.0,0.24597571]
[1644079085390,0.06999584,41594.0,41593.0,0.24597571]
[1644079085639,0.23507428,41594.0,41593.0,0.24597571]
[1644079086041,0.06999584,41594.0,41593.0,0.24597571]
[1644079086442,0.13013084,41594.0,41593.0,0.24597571]
[1644079086641,0.06972984,41594.0,41593.0,0.24597571]
[1644079087039,0.06972984,41594.0,41593.0,0.24097571]
[1644079087741,0.26968237,41594.0,41593.0,0.24097571]
[1644079088141,0.06972984,41594.0,41593.0,0.24097571]
[1644079088346,1.76819495,41595.0,41593.0,0.24097571]
[1644079088543,0.24148408,41599.0,41593.0,0.24097571]
[1644079088544,0.07121608,41599.0,41593.0,0.24097571]
[1644079088742,0.02121608,41599.0,41593.0,0.24097571]
[1644079089142,0.02121608,41599.0,41594.0,0.334497]
[1644079089143,0.2783412,41597.0,41594.0,0.334497]
[1644079089400,0.08627481,41595.0,41594.0,0.00026023]
[1644079089600,0.08627481,41595.0,41593.0,0.24097571]
[1644079091101,0.08627481,41595.0,41593.0,0.23597571]
[1644079093140,0.36461601,41597.0,41594.0,0.5]
[1644079093340,0.31461601,41597.0,41594.0,0.00026023]
[1644079093546,0.15,41597.0,41593.0,0.23597571]
[1644079093940,0.15,41597.0,41593.0,0.21097571]
[1644079094542,0.41285301,41597.0,41593.0,0.21097571]
[1644079094741,0.31285301,41597.0,41593.0,0.21097571]
[1644079094943,0.41285301,41597.0,41593.0,0.21097571]
[1644079097393,0.15,41597.0,41593.0,0.21097571]
[1644079097889,0.05,41597.0,41594.0,0.3]
[1644079098089,0.25360463,41598.0,41594.0,0.30026023]
[1644079098489,0.25192094,41597.0,41594.0,0.00026023]
[1644079098691,0.25192094,41597.0,41593.0,0.21097571]
[1644079099289,0.25192094,41597.0,41593.0,0.18987814]
[1644079100291,0.25192094,41597.0,41593.0,0.18487814]
[1644079100944,0.25192094,41597.0,41593.0,0.17987814]
[1644079104593,0.25192094,41597.0,41593.0,0.16487814]
[1644079105695,0.25192094,41597.0,41593.0,0.15987814]
[1644079108944,0.35360463,41598.0,41593.0,0.15987814]
[1644079109149,0.25598377,41595.0,41593.0,0.15987814]
[1644079109945,0.25598377,41595.0,41594.0,0.31368779]
[1644079110149,0.41632556,41599.0,41594.0,0.60868779]
[1644079110150,0.25598377,41596.0,41594.0,0.60868779]
[1644079110447,0.021051,41600.0,41594.0,0.30894802]
[1644079110448,0.32616536,41600.0,41594.0,0.30894802]
[1644079110646,0.32616536,41600.0,41594.0,0.60868779]
[1644079110850,0.30511436,41603.0,41595.0,1.132497]
[1644079111049,0.16507875,41608.0,41604.0,0.07297539]
[1644079111050,0.47019311,41608.0,41604.0,0.07297539]
[1644079111249,0.30511436,41610.0,41604.0,0.07297539]
[1644079111653,0.02197729,41610.0,41604.0,0.00026023]
[1644079111893,0.02197729,41610.0,41603.0,0.00026023]
[1644079112092,0.02197729,41610.0,41601.0,0.00026023]
[1644079112293,0.02197729,41610.0,41601.0,0.22535336]
[1644079112294,0.22935245,41606.0,41601.0,0.22535336]
[1644079112492,0.22935245,41606.0,41600.0,0.00026023]
[1644079112691,0.22935245,41606.0,41599.0,0.02126023]
[1644079112892,0.30500989,41606.0,41599.0,0.02126023]
[1644079113092,0.30511436,41608.0,41601.0,0.31474585]
[1644079113292,0.37817385,41610.0,41601.0,0.31474585]
[1644079113293,0.30511436,41609.0,41601.0,0.31474585]
[1644079113493,0.32709165,41610.0,41601.0,0.31474585]
[1644079114095,0.2330792,41605.0,41601.0,0.21953119]
[1644079114495,0.2330792,41605.0,41600.0,0.00026023]
[1644079114699,0.2330792,41605.0,41599.0,0.021]
[1644079114896,0.29354363,41604.0,41599.0,0.021]
[1644079115539,0.05,41603.0,41599.0,0.021]
[1644079115940,0.05,41604.0,41599.0,0.021]
[1644079116139,0.05,41604.0,41596.0,0.00026023]
[1644079116342,0.3830792,41605.0,41595.0,0.30392503]
[1644079116740,0.2830792,41605.0,41595.0,0.30392503]
[1644079116946,0.2330792,41605.0,41595.0,0.30392503]
[1644079117141,0.2330792,41605.0,41601.0,0.26718649]
[1644079117341,0.1,41607.0,41603.0,0.4036358]
[1644079117542,0.30511436,41610.0,41603.0,0.4036358]
[1644079117741,0.37719256,41612.0,41603.0,0.4036358]
[1644079117742,0.32611036,41612.0,41603.0,0.4036358]
[1644079118142,0.32611036,41612.0,41603.0,0.40389603]
[1644079118541,0.25583222,41610.0,41607.0,0.06885779]
[1644079118841,0.020996,41612.0,41603.0,0.25389603]
[1644079119041,0.020996,41612.0,41603.0,0.2536358]
[1644079119299,0.020996,41612.0,41603.0,0.25389603]
[1644079119494,0.35619656,41615.0,41603.0,0.25389603]
[1644079119495,0.30511436,41614.0,41603.0,0.25389603]
[1644079119890,0.30511436,41614.0,41609.0,0.2413366]
[1644079120091,0.30511436,41615.0,41611.0,0.0855473]
[1644079120690,0.45619656,41618.0,41609.0,0.21700105]
[1644079120691,0.30511436,41616.0,41609.0,0.21700105]
[1644079120891,0.23741405,41613.0,41609.0,0.21700105]
[1644079121291,0.30511436,41617.0,41609.0,0.21700105]
[1644079121493,0.47017468,41617.0,41609.0,0.21700105]
[1644079121794,0.30511436,41617.0,41609.0,0.21700105]
[1644079122392,0.52812508,41617.0,41609.0,0.21700105]
[1644079122593,0.52312508,41617.0,41609.0,0.21700105]
[1644079122794,0.32301072,41617.0,41607.0,0.07977202]
[1644079123041,0.22301072,41617.0,41610.0,0.36318391]
[1644079123841,0.22301072,41617.0,41607.0,0.07977202]
[1644079124043,0.05,41615.0,41607.0,0.07977202]
[1644079124242,0.05,41615.0,41602.0,0.25229979]
[1644079124843,0.05,41615.0,41606.0,0.22787538]
[1644079125044,0.61729751,41617.0,41604.0,0.334497]
[1644079125045,0.23728849,41610.0,41604.0,0.334497]
[1644079125245,0.23728849,41610.0,41602.0,0.25229979]
[1644079125445,0.23728849,41610.0,41600.0,0.08488209]
[1644079125645,0.23728849,41610.0,41600.0,0.08514232]
[1644079126045,0.23728849,41610.0,41601.0,0.275812]
[1644079126246,0.52131117,41610.0,41600.0,0.02007594]
[1644079126452,0.05,41608.0,41600.0,0.01981571]
[1644079127296,0.26850969,41602.0,41600.0,0.01981571]
[1644079127490,0.05,41608.0,41599.0,0.00026023]
[1644079127491,0.060113,41607.0,41599.0,0.00026023]
[1644079127689,0.060113,41607.0,41598.0,0.00026023]
[1644079127890,0.060113,41607.0,41597.0,0.22741471]
[1644079128290,0.060113,41607.0,41596.0,0.00026023]
[1644079128491,0.110113,41607.0,41595.0,0.42074404]
[1644079128690,0.05,41604.0,41595.0,0.42048381]
[1644079129089,2.51245444,41596.0,41595.0,0.42048381]
[1644079129291,0.16506032,41609.0,41595.0,0.41548381]
[1644079129491,0.110113,41610.0,41599.0,0.334497]
[1644079129492,0.2758043,41603.0,41599.0,0.334497]
[1644079129691,0.110113,41610.0,41599.0,0.334497]
[1644079129920,0.05,41610.0,41598.0,0.22830348]
[1644079130090,0.05,41610.0,41598.0,0.22804325]
[1644079130940,0.21701212,41605.0,41598.0,0.22804325]
[1644079131140,0.21701212,41605.0,41599.0,0.334497]
[1644079134591,0.21010801,41610.0,41602.0,0.47594284]
[1644079134794,0.11010801,41610.0,41602.0,0.47594284]
[1644079134993,0.05,41610.0,41602.0,0.47594284]
[1644079135592,0.2369536,41606.0,41602.0,0.47594284]
[1644079136796,0.15,41610.0,41602.0,0.47594284]
[1644079137095,0.2,41610.0,41602.0,0.47594284]
[1644079137293,0.15,41610.0,41602.0,0.47594284]
[1644079137499,0.05,41610.0,41602.0,0.47594284]
[1644079137694,0.1,41610.0,41602.0,0.47594284]
[1644079137895,0.27647766,41609.0,41602.0,0.47594284]
[1644079138139,0.27647766,41609.0,41602.0,0.38699665]
[1644079138539,0.27647766,41609.0,41598.0,0.22804325]
[1644079139255,0.27647766,41609.0,41599.0,0.24033297]
[1644079139341,0.27647766,41609.0,41596.0,0.29479122]
[1644079139539,0.27647766,41609.0,41603.0,0.40354702]
[1644079140146,0.27647766,41609.0,41604.0,0.25543149]
[1644079140541,0.15,41612.0,41604.0,0.25543149]
[1644079140942,0.05,41612.0,41604.0,0.25543149]
[1644079141543,0.23986185,41611.0,41604.0,0.25543149]
[1644079142386,0.28986185,41611.0,41604.0,0.25543149]
[1644079142588,0.05,41607.0,41603.0,0.40354702]
[1644079142793,0.49996985,41611.0,41603.0,0.40354702]
[1644079142989,0.05,41607.0,41603.0,0.40354702]
[1644079143389,0.49996985,41611.0,41596.0,0.31459122]
[1644079143390,0.05,41610.0,41596.0,0.31459122]
[1644079143689,0.19917848,41603.0,41598.0,0.23732384]
[1644079143887,0.22501934,41605.0,41599.0,0.75]
[1644079144388,0.05,41610.0,41603.0,0.39296119]
[1644079144988,0.2,41611.0,41603.0,0.39296119]
[1644079145188,0.24847388,41609.0,41603.0,0.39296119]
[1644079146843,0.35858438,41609.0,41598.0,0.23732384]
[1644079147045,0.07540811,41606.0,41598.0,0.23732384]
[1644079147244,0.05,41608.0,41598.0,0.23732384]
[1644079147948,0.05,41608.0,41600.0,0.30270526]
[1644079148144,0.2150517,41608.0,41600.0,0.30270526]
[1644079148344,0.05,41608.0,41600.0,0.30270526]
[1644079148544,0.05,41608.0,41598.0,0.23732384]
[1644079148945,0.96819869,41609.0,41598.0,0.23732384]
[1644079149145,0.12096472,41608.0,41598.0,0.23732384]
[1644079149400,0.30095711,41608.0,41598.0,0.24232384]
[1644079149699,0.045,41607.0,41598.0,0.24232384]
[1644079150298,0.30095711,41608.0,41598.0,0.24232384]
[1644079150502,0.30095711,41608.0,41600.0,0.36477658]
[1644079151100,0.25595711,41608.0,41600.0,0.36477658]
[1644079151699,0.25595711,41608.0,41602.0,0.005]
[1644079152099,0.25595711,41608.0,41600.0,0.36477658]
[1644079152503,0.045,41605.0,41600.0,0.36477658]
[1644079152703,0.20321572,41602.0,41600.0,0.36477658]
[1644079153047,0.35595711,41607.0,41600.0,0.36477658]
[1644079153048,0.45595711,41607.0,41600.0,0.36477658]
[1644079153643,0.25595711,41606.0,41600.0,0.36477658]
[1644079153844,0.25595711,41606.0,41601.0,0.005]
[1644079154044,0.25595711,41607.0,41601.0,0.005]
[1644079154245,0.56345143,41608.0,41601.0,0.005]
[1644079154447,0.70544938,41608.0,41601.0,0.005]
[1644079155247,0.64533784,41608.0,41601.0,0.005]
[1644079155551,0.30704965,41607.0,41601.0,0.005]
[1644079155747,0.30704965,41607.0,41600.0,0.36477658]
[1644079155948,0.40704965,41607.0,41600.0,0.36477658]
[1644079157590,0.30704965,41607.0,41600.0,0.36477658]
[1644079157790,0.30704965,41606.0,41600.0,0.36477658]
[1644079158195,0.1,41606.0,41600.0,0.36477658]
[1644079158791,0.40704965,41606.0,41600.0,0.36477658]
[1644079158992,0.045,41604.0,41600.0,0.36477658]
[1644079159193,0.25611217,41604.0,41600.0,0.36477658]
[1644079159593,0.06806524,41603.0,41600.0,0.36477658]
[1644079159792,0.06806524,41603.0,41596.0,0.005]
[1644079160650,0.33631671,41600.0,41593.0,0.15987814]
[1644079160857,0.045,41594.0,41593.0,0.15987814]
[1644079161048,0.23533763,41596.0,41593.0,0.15987814]
[1644079161049,0.02574,41595.0,41593.0,0.15987814]
[1644079162046,0.02574,41595.0,41593.0,0.13057814]
[1644079164052,0.079478,41594.0,41593.0,0.13057814]
[1644079164297,0.060208,41594.0,41593.0,0.13057814]
[1644079166691,0.07574,41595.0,41593.0,0.13057814]
[1644079167290,0.05,41595.0,41593.0,0.13057814]
[1644079167793,0.07574,41598.0,41593.0,0.13057814]
[1644079168044,0.07574,41598.0,41596.0,0.22325108]
[1644079168547,0.30704965,41604.0,41597.0,0.27357806]
[1644079168548,0.33278965,41604.0,41597.0,0.27357806]
[1644079168752,0.16509705,41605.0,41603.0,0.40336866]
[1644079168945,0.16509705,41606.0,41604.0,0.26778466]
[1644079169143,0.02196441,41607.0,41604.0,0.26778466]
[1644079169343,0.02196441,41607.0,41604.0,0.2356369]
[1644079169544,0.02196441,41607.0,41604.0,0.30347999]
[1644079169742,0.23744724,41610.0,41604.0,0.30347999]
[1644079169942,0.03522009,41610.0,41604.0,0.2356369]
[1644079170643,0.03522009,41610.0,41607.0,0.21977018]
[1644079171446,0.06096009,41610.0,41608.0,0.26395216]
[1644079171897,0.03522009,41610.0,41608.0,0.25306031]
[1644079172096,0.30704965,41612.0,41607.0,0.21977018]
[1644079172495,0.27227411,41611.0,41607.0,0.21977018]
[1644079172697,0.27227411,41611.0,41605.0,0.27206048]
[1644079172895,0.29801411,41611.0,41605.0,0.27206048]
[1644079173297,0.30704965,41612.0,41605.0,0.27206048]
[1644079173999,0.02574,41609.0,41605.0,0.27206048]
[1644079174298,0.53830262,41610.0,41605.0,0.25971229]
[1644079174497,0.56404262,41610.0,41605.0,0.25971229]
[1644079174695,0.71404262,41610.0,41605.0,0.25971229]
[1644079174896,0.71404262,41610.0,41596.0,0.35038248]
[1644079175096,0.71404262,41610.0,41597.0,0.08247526]
[1644079175396,0.71404262,41610.0,41598.0,0.3633434]
[1644079175643,0.71404262,41610.0,41599.0,0.28594727]
[1644079175844,0.71404262,41610.0,41604.0,0.25398501]
[1644079176044,0.71404262,41610.0,41599.0,0.28594727]
[1644079176450,0.71404262,41610.0,41599.0,0.27289842]
[1644079177245,0.71404262,41610.0,41603.0,0.19944436]
[1644079178145,0.30704965,41609.0,41603.0,0.19944436]
[1644079178344,0.40704965,41609.0,41603.0,0.19944436]
[1644079179795,0.30704965,41609.0,41603.0,0.19944436]
[1644079179993,0.25699297,41610.0,41603.0,0.19944436]
[1644079179994,0.53830262,41610.0,41603.0,0.19944436]
[1644079180191,0.02574,41607.0,41603.0,0.19944436]
[1644079180394,0.02574,41607.0,41604.0,0.24918054]
[1644079180592,0.30704965,41609.0,41600.0,0.26366629]
[1644079180792,0.02574,41609.0,41600.0,0.26366629]
[1644079181395,0.02574,41609.0,41602.0,0.22733356]
[1644079181893,0.02574,41607.0,41603.0,0.24946351]
[1644079182293,0.33125297,41610.0,41603.0,0.24946351]
[1644079182695,0.23125297,41610.0,41603.0,0.24946351]
[1644079182895,0.1,41610.0,41604.0,0.02426]
[1644079183142,0.30704965,41611.0,41603.0,0.24946351]
[1644079183342,0.02574,41607.0,41603.0,0.24946351]
[1644079184049,0.16509705,41612.0,41606.0,0.08581534]
[1644079184254,0.42078831,41621.0,41611.0,0.02426]
[1644079184255,0.30704965,41617.0,41611.0,0.02426]
[1644079184448,0.30704965,41617.0,41607.0,0.3]
[1644079184449,0.02574,41610.0,41607.0,0.348]
[1644079184647,0.02574,41610.0,41608.0,0.334497]
[1644079184844,0.02574,41610.0,41609.0,0.57034215]
[1644079185045,0.02574,41610.0,41609.0,0.95287446]
[1644079185245,0.02574,41610.0,41609.0,1.10287446]
[1644079185449,0.02099533,41618.0,41617.0,0.33490485]
[1644079185846,0.32741981,41623.0,41617.0,0.33490485]
[1644079186047,0.30704965,41622.0,41617.0,0.33490485]
[1644079187096,0.32741981,41623.0,41621.0,0.07700944]
[1644079187301,0.02037016,41623.0,41621.0,0.07700944]
[1644079187697,0.47209315,41628.0,41622.0,0.75]
[1644079187898,0.35619656,41630.0,41623.0,0.3]
[1644079187899,0.30704965,41630.0,41623.0,0.3]
[1644079188095,0.30704965,41630.0,41625.0,0.24527706]
[1644079188296,0.30704965,41630.0,41624.0,0.39935047]
[1644079188696,0.26272302,41631.0,41624.0,0.39935047]
[1644079188896,0.26272302,41631.0,41622.0,0.32037016]
[1644079189102,0.05,41623.0,41622.0,0.02037016]
[1644079189297,0.29888839,41623.0,41622.0,0.02037016]
[1644079190200,0.37786739,41623.0,41622.0,0.02037016]
[1644079190405,0.24888839,41623.0,41622.0,0.02037016]
[1644079191848,0.29888839,41623.0,41622.0,0.02037016]
[1644079192045,0.24888839,41623.0,41622.0,0.02037016]
[1644079192448,0.24888839,41623.0,41617.0,0.01884291]
[1644079193847,0.24888839,41623.0,41614.0,0.27795996]
[1644079194046,0.08698419,41621.0,41614.0,0.27795996]
[1644079195594,0.05,41623.0,41614.0,0.29636744]
[1644079195794,0.30704965,41628.0,41614.0,0.29636744]
[1644079195997,0.30704965,41630.0,41614.0,0.29636744]
[1644079196196,0.35704965,41630.0,41614.0,0.29636744]
[1644079196395,0.45704965,41630.0,41614.0,0.34436744]
[1644079196595,0.07260675,41629.0,41619.0,0.29364008]
[1644079196795,0.24331731,41623.0,41619.0,0.29364008]
[1644079196996,0.24331731,41623.0,41620.0,0.25112222]
[1644079197797,0.17260675,41629.0,41619.0,0.29364008]
[1644079198050,0.17260675,41629.0,41615.0,0.3]
[1644079198349,0.07260675,41629.0,41615.0,0.3]
[1644079198648,0.05,41628.0,41614.0,0.27795996]
[1644079198849,0.21978407,41620.0,41614.0,0.26698098]
[1644079199047,0.21978407,41620.0,41615.0,0.38728449]
[1644079199248,0.21978407,41620.0,41616.0,0.334497]
[1644079200051,0.21978407,41620.0,41617.0,0.334497]
[1644079200449,0.21978407,41620.0,41610.0,0.28710902]
[1644079200648,0.0656822,41617.0,41610.0,0.25597418]
[1644079200847,0.21978407,41620.0,41607.0,0.2699]
[1644079201046,0.21978407,41620.0,41609.0,0.22368325]
[1644079201249,0.20248398,41613.0,41607.0,0.1199]
[1644079201450,0.20248398,41613.0,41604.0,0.01891778]
[1644079201451,0.05,41611.0,41604.0,0.01891778]
[1644079201649,0.05,41610.0,41604.0,0.01891778]
[1644079201896,0.20248398,41613.0,41602.0,0.01826134]
[1644079201897,0.30248398,41613.0,41602.0,0.01826134]
[1644079202096,0.05,41611.0,41602.0,0.01826134]
[1644079202699,0.07794794,41610.0,41602.0,0.01826134]
[1644079202896,0.05,41611.0,41602.0,0.01826134]
[1644079203097,0.05,41611.0,41607.0,0.31097506]
[1644079203498,0.22491614,41610.0,41607.0,0.31097506]
[1644079203698,0.22491614,41610.0,41602.0,0.01826134]
[1644079203900,0.22491614,41610.0,41601.0,0.23061686]
[1644079204299,0.22491614,41610.0,41601.0,0.22728353]
[1644079204500,0.22491614,41610.0,41599.0,0.02034598]
[1644079205553,0.22491614,41610.0,41600.0,0.2677018]
[1644079206752,0.22491614,41610.0,41597.0,0.07720998]
[1644079206952,0.22491614,41610.0,41596.0,0.33138719]
[1644079207751,0.26020975,41601.0,41596.0,0.60786747]
[1644079207956,0.26020975,41601.0,41597.0,0.334497]
[1644079208152,0.05,41607.0,41597.0,0.334497]
[1644079208355,0.31134651,41606.0,41596.0,0.02042259]
[1644079208655,0.49161708,41611.0,41597.0,0.353747]
[1644079208656,0.21723212,41605.0,41597.0,0.353747]
[1644079208854,0.21723212,41605.0,41596.0,0.01542259]
[1644079208855,0.03075,41599.0,41596.0,0.01542259]
[1644079209052,0.03075,41599.0,41597.0,0.01925]
[1644079209499,0.26864262,41601.0,41597.0,0.01925]
[1644079209797,0.03075,41602.0,41597.0,0.01925]
[1644079210197,0.090872,41602.0,41597.0,0.01925]
[1644079210396,0.060122,41600.0,41597.0,0.01925]
[1644079210601,0.26115048,41600.0,41597.0,0.01925]
[1644079210899,0.32677362,41604.0,41597.0,0.01925]
[1644079211097,0.05,41605.0,41597.0,0.01925]
[1644079211297,0.08075,41606.0,41597.0,0.01925]
[1644079211499,0.048,41605.0,41597.0,0.01925]
[1644079211699,0.03075,41602.0,41595.0,0.34747131]
[1644079211899,0.07110398,41601.0,41597.0,0.01925]
[1644079212499,0.22660804,41600.0,41597.0,0.01925]
[1644079213151,0.29867157,41604.0,41597.0,0.01925]
[1644079213348,0.1,41605.0,41597.0,0.01856]
[1644079213546,0.18144,41607.0,41597.0,0.01856]
[1644079213747,0.23144,41607.0,41597.0,0.01856]
[1644079214147,0.03144,41607.0,41597.0,0.10147908]
[1644079214350,0.03144,41607.0,41601.0,0.01856]
[1644079214551,0.03144,41607.0,41597.0,0.10147908]
[1644079214748,0.1,41609.0,41598.0,0.01856]